fUST/lending_fUST_20251006
["ID","MTS","AMOUNT","RATE_DAILY","PERIOD"]
[389537451,1759704664759,-500.0,0.00017808,2]
[389537452,1759704664769,-500.0,0.00017808,2]
[389537453,1759704664779,-500.0,0.00017808,2]
[389537454,1759704664788,-2551.5,0.00017808,2]
[389537455,1759704664798,-500.0,0.00017808,2]
[389537456,1759704664807,-520.76,0.00017808,2]
[389537457,1759704664817,-500.0,0.00017808,2]
[389537458,1759704664826,-8481.96,0.00017808,2]
[389537459,1759704664835,-1500.0,0.00017808,2]
[389537460,1759704664845,-892.26,0.00017808,2]
[389537461,1759704664855,-1102.61,0.00017808,2]
[389537462,1759704664864,-500.0,0.00017808,2]
[389537463,1759704664873,-500.0,0.00017808,2]
[389537464,1759704664883,-500.0,0.00017808,2]
[389537465,1759704664892,-1144.19,0.00017808,2]
[389537466,1759704664901,-902.28,0.00017808,2]
[389537467,1759704664910,-500.0,0.00017808,2]
[389537468,1759704664919,-483.0,0.0001781,2]
[389537469,1759704664929,-203.0,0.00017835,2]
[389537470,1759704664939,-420.0,0.00017841,2]
[389537471,1759704664952,-1680.0,0.00017843,2]
[389537472,1759704664962,-203.0,0.00017867,2]
[389537473,1759704664971,-162.6680534,0.0001789,2]
[389537474,1759704664981,-1680.0,0.00017931,2]
[389537475,1759704664992,-483.0,0.00017979,2]
[389537476,1759704665001,-483.0,0.00017981,2]
[389537477,1759704665011,-64744.51754107,0.00018,2]
[389537478,1759704665021,-483.0,0.00018012,2]
[389537479,1759704665033,-483.0,0.00018015,2]
[389537480,1759704665043,-483.0,0.00018023,2]
[389537481,1759704665055,-483.0,0.0001803,2]
[389537482,1759704665064,-160.0,0.00018043,2]
[389537483,1759704665074,-980.0,0.00018045,2]
[389537484,1759704665083,-630.0,0.00018045,2]
[389537485,1759704665094,-2158.0,0.00018045,2]
[389537486,1759704665103,-150.0,0.00018045,2]
[389537487,1759704665113,-189.5044535,0.00018063,2]
[389537488,1759704665123,-20746.26328358,0.00018072,2]
[389537489,1759704665134,-1399.0,0.00018082,2]
[389537490,1759704665144,-500.0,0.00018082,2]
[389537491,1759704665154,-500.0,0.00018082,2]
[389537492,1759704665163,-625.71,0.00018082,2]
[389537493,1759704665172,-500.0,0.00018082,2]
[389537494,1759704665184,-531.85,0.00018082,2]
[389537495,1759704665193,-567.24,0.00018082,2]
[389537496,1759704665205,-500.0,0.00018082,2]
[389537497,1759704665215,-500.0,0.00018082,2]
[389537498,1759704665226,-500.0,0.00018082,2]
[389537499,1759704665235,-500.0,0.00018082,2]
[389537500,1759704665244,-500.0,0.00018082,2]
[389537501,1759704665254,-500.0,0.00018082,2]
[389537502,1759704665263,-1649.29,0.00018082,2]
[389537503,1759704665272,-500.0,0.00018082,2]
[389537504,1759704665282,-500.0,0.00018082,2]
[389537505,1759704665292,-886.78,0.00018082,2]
[389537506,1759704665302,-500.0,0.00018082,2]
[389537507,1759704665313,-500.0,0.00018082,2]
[389537508,1759704665322,-518.5,0.00018082,2]
[389537509,1759704665332,-500.0,0.00018082,2]
[389537510,1759704665342,-500.0,0.00018082,2]
[389537511,1759704665351,-500.0,0.00018082,2]
[389537512,1759704665361,-1453.29,0.00018082,2]
[389537513,1759704665371,-365.81147749,0.00018082,2]
[389537514,1759704665380,-793.8,0.00018082,2]
[389537515,1759704665389,-810.29,0.00018082,2]
[389537516,1759704665398,-500.0,0.00018082,2]
[389537517,1759704665407,-500.0,0.00018082,2]
[389537518,1759704665416,-500.0,0.00018082,2]
[389537519,1759704665426,-606.49,0.00018082,2]
[389537520,1759704665435,-500.0,0.00018082,2]
[389537521,1759704665445,-504.74,0.00018082,2]
[389537522,1759704665454,-500.0,0.00018082,2]
[389537523,1759704665463,-500.0,0.00018082,2]
[389537524,1759704665472,-600.36,0.00018082,2]
[389537525,1759704665482,-558.58,0.00018082,2]
[389537526,1759704665491,-859.48,0.00018082,2]
[389537527,1759704665500,-500.0,0.00018082,2]
[389537528,1759704665509,-342.24774734,0.00018082,2]
[389537529,1759704665520,-500.0,0.00018082,2]
[389537530,1759704665531,-500.0,0.00018082,2]
[389537531,1759704665541,-1484.28,0.00018082,2]
[389537532,1759704665550,-526.17,0.00018082,2]
[389537533,1759704665559,-500.0,0.00018082,2]
[389537534,1759704665569,-749.08,0.00018082,2]
[389537535,1759704665579,-635.91,0.00018082,2]
[389537536,1759704665588,-500.0,0.00018082,2]
[389537537,1759704665597,-500.0,0.00018082,2]
[389537538,1759704665606,-500.0,0.00018082,2]
[389537539,1759704665617,-500.0,0.00018082,2]
[389537540,1759704665626,-564.93,0.00018082,2]
[389537541,1759704665637,-1421.23,0.00018082,2]
[389537542,1759704665646,-594.3,0.00018082,2]
[389537543,1759704665655,-500.0,0.00018082,2]
[389537544,1759704665664,-593.13,0.00018082,2]
[389537545,1759704665673,-500.0,0.00018082,2]
[389537546,1759704665683,-3688.79,0.00018082,2]
[389537547,1759704665692,-2098.57,0.00018082,2]
[389537548,1759704665701,-500.0,0.00018082,2]
[389537549,1759704665711,-4588.49,0.00018082,2]
[389537550,1759704665720,-8968.85,0.00018082,2]
[389537551,1759704665729,-500.0,0.00018082,2]
[389537552,1759704665739,-1457.14,0.00018082,2]
[389537553,1759704665748,-742.33,0.00018082,2]
[389537554,1759704665757,-844.19,0.00018082,2]
[389537555,1759704665767,-597.63,0.00018082,2]
[389537556,1759704665777,-500.0,0.00018082,2]
[389537557,1759704665786,-705.73,0.00018082,2]
[389537558,1759704665795,-13144.64,0.00018082,2]
[389537559,1759704665805,-500.0,0.00018082,2]
[389537560,1759704665814,-3046.09,0.00018082,2]
[389537561,1759704665823,-1428.52,0.00018082,2]
[389537562,1759704665832,-500.0,0.00018082,2]
[389537563,1759704665841,-500.0,0.00018082,2]
[389537564,1759704665850,-500.0,0.00018082,2]
[389537565,1759704665859,-2379.96,0.00018082,2]
[389537566,1759704665869,-1143.55,0.00018082,2]
[389537567,1759704665878,-590.32,0.00018082,2]
[389537568,1759704665887,-991.56,0.00018082,2]
[389537569,1759704665896,-500.0,0.00018082,2]
[389537570,1759704665905,-759.89,0.00018082,2]
[389537571,1759704665914,-590.75,0.00018082,2]
[389537572,1759704665923,-500.0,0.00018082,2]
[389537573,1759704665932,-500.0,0.00018082,2]
[389537574,1759704665941,-1760.83,0.00018082,2]
[389537575,1759704665954,-1358.86,0.00018082,2]
[389537576,1759704665963,-614.51,0.00018082,2]
[389537577,1759704665973,-500.0,0.00018082,2]
[389537578,1759704665982,-306.11771546,0.00018082,2]
[389537579,1759704682444,200.0,0.00031861,120]
[389537580,1759704775022,2431.0,0.000287,120]
[389537583,1759704875997,453.0,0.0002012,9]
[389537586,1759704985604,200.0,0.00031799,120]
[389537587,1759705010910,1444.0,0.00027589,120]
[389537588,1759705102732,3113.0,0.00031799,60]
[389537594,1759705244482,363.65111782,8.219e-05,2]
[389537595,1759705244505,136.34888218,8.219e-05,2]
[389537596,1759705282731,200.0,0.00031727,120]
[389537604,1759705582087,200.0,0.0003173,120]
[389537606,1759705795722,706.06636185,0.00027589,120]
[389537619,1759705831939,-186.56249885,0.00016328,2]
[389537621,1759705831948,-300.0,0.00016336,2]
[389537623,1759705831958,-1200.0,0.00016336,2]
[389537625,1759705831967,-1200.0,0.00016337,2]
[389537627,1759705831977,-300.0,0.00016337,2]
[389537629,1759705831987,-300.0,0.00016337,2]
[389537631,1759705831996,-5349.34492938,0.00016338,2]
[389537633,1759705832008,-453.0,0.00016338,2]
[389537636,1759705832019,-3208.54149005,0.00016338,2]
[389537638,1759705832028,-850.845,0.00016338,2]
[389537640,1759705832038,-8150.71086551,0.00016427,2]
[389537642,1759705832047,-500.0,0.00016427,2]
[389537644,1759705832056,-500.0,0.00016427,2]
[389537646,1759705832066,-500.0,0.00016427,2]
[389537648,1759705832075,-616.32814867,0.00016427,2]
[389537652,1759705832085,-500.0,0.00016427,2]
[389537655,1759705832094,-551.47236554,0.00016427,2]
[389537658,1759705832104,-500.0,0.00016427,2]
[389537660,1759705832113,-500.0,0.00016427,2]
[389537664,1759705832123,-407.68854444,0.00016427,2]
[389537666,1759705832132,-1357.43,0.00016428,3]
[389537670,1759705832142,-678.71,0.00016428,3]
[389537672,1759705832152,-339.36,0.00016428,3]
[389537674,1759705832161,-339.36,0.00016428,3]
[389537676,1759705832171,-729.62,0.00016428,3]
[389537678,1759705832180,-912.66,0.00016428,3]
[389537679,1759705832189,-456.33,0.00016428,3]
[389537681,1759705832198,-228.16,0.00016428,3]
[389537683,1759705832207,-684.53,0.00016428,3]
[389537685,1759705832216,-250.0,0.00016428,2]
[389537687,1759705832226,-500.0,0.00016428,2]
[389537689,1759705832236,-250.0,0.00016428,2]
[389537690,1759705832250,-500.0,0.00016428,2]
[389537692,1759705832259,-18603.8837,0.00016428,2]
[389537693,1759705832269,-250.0,0.00016428,2]
[389537694,1759705832278,-500.0,0.00016428,2]
[389537695,1759705832288,-250.0,0.00016428,2]
[389537697,1759705832297,-500.0,0.00016428,2]
[389537699,1759705832306,-250.0,0.00016428,2]
[389537701,1759705832316,-605.36418013,0.00016428,2]
[389537703,1759705832324,-250.0,0.00016428,2]
[389537705,1759705832334,-250.0,0.00016428,2]
[389537706,1759705832343,-156.3726324,0.00016428,2]
[389537708,1759705832352,-151.0,0.00016428,2]
[389537710,1759705832361,-151.0,0.00016428,2]
[389537712,1759705832371,-160.19833208,0.00016428,2]
[389537714,1759705832380,-168.3888056,0.00016428,2]
[389537716,1759705832389,-268.43727629,0.00016437,2]
[389537718,1759705832398,-501.49936311,0.00016437,2]
[389537720,1759705832407,-167.99795512,0.00016437,2]
[389537722,1759705832417,-500.0,0.00016438,2]
[389537724,1759705832430,-323.88151494,0.00016438,2]
[389537726,1759705832444,-500.0,0.00016438,2]
[389537728,1759705832455,-501.87564048,0.00016438,2]
[389537730,1759705832465,-538.26603482,0.00016438,2]
[389537732,1759705832474,-500.0,0.00016438,2]
[389537734,1759705832483,-500.0,0.00016438,2]
[389537736,1759705832492,-500.0,0.00016438,2]
[389537738,1759705832502,-500.0,0.00016438,2]
[389537740,1759705832512,-501.84422856,0.00016438,2]
[389537742,1759705832521,-150.0,0.00016438,2]
[389537744,1759705832530,-300.0,0.00016438,2]
[389537746,1759705832539,-450.0,0.00016438,2]
[389537748,1759705832548,-600.0,0.00016438,2]
[389537750,1759705832558,-750.0,0.00016438,2]
[389537752,1759705832567,-793.59346026,0.00016438,2]
[389537754,1759705832576,-500.0,0.00016438,2]
[389537756,1759705832585,-520.0,0.00016438,3]
[389537758,1759705832594,-515.06,0.00016438,2]
[389537760,1759705832604,-483.60202575,0.00016438,2]
[389537762,1759705832613,-500.0,0.00016438,2]
[389537764,1759705832623,-500.0,0.00016438,2]
[389537766,1759705832632,-500.0,0.00016438,2]
[389537768,1759705832641,-500.0,0.00016438,2]
[389537770,1759705832651,-500.0,0.00016438,2]
[389537772,1759705832659,-500.0,0.00016438,2]
[389537773,1759705832668,-500.0,0.00016438,2]
[389537775,1759705832677,-502.43205977,0.00016438,2]
[389537777,1759705832686,-500.0,0.00016438,2]
[389537779,1759705832695,-500.0,0.00016438,2]
[389537781,1759705832704,-500.0,0.00016438,2]
[389537783,1759705832712,-500.0,0.00016438,2]
[389537785,1759705832722,-484.08378954,0.00016438,2]
[389537787,1759705832731,-500.0,0.00016438,2]
[389537789,1759705832739,-287.75709323,0.00016438,2]
[389537791,1759705832748,-500.0,0.00016438,2]
[389537793,1759705832757,-486.69833044,0.00016438,2]
[389537795,1759705832766,-500.0,0.00016438,2]
[389537797,1759705832775,-340.94914182,0.00016438,2]
[389537799,1759705832784,-260.28427647,0.00016438,2]
[389537801,1759705832798,-500.0,0.00016438,2]
[389537803,1759705832808,-500.0,0.00016438,2]
[389537805,1759705832817,-500.0,0.00016438,2]
[389537807,1759705832827,-500.0,0.00016438,2]
[389537809,1759705832838,-500.0,0.00016438,2]
[389537811,1759705832847,-500.0,0.00016438,2]
[389537813,1759705832856,-500.0,0.00016438,2]
[389537815,1759705832868,-500.0,0.00016438,2]
[389537817,1759705832877,-500.0,0.00016438,2]
[389537819,1759705832886,-500.0,0.00016438,2]
[389537821,1759705832896,-500.0,0.00016438,2]
[389537823,1759705832905,-500.0,0.00016438,2]
[389537825,1759705832914,-500.0,0.00016438,2]
[389537827,1759705832924,-500.0,0.00016438,2]
[389537829,1759705832933,-530.46930677,0.00016438,2]
[389537831,1759705832942,-500.0,0.00016438,2]
[389537833,1759705832951,-500.0,0.00016438,2]
[389537835,1759705832961,-500.0,0.00016438,2]
[389537837,1759705832970,-500.0,0.00016438,2]
[389537839,1759705832980,-500.0,0.00016438,2]
[389537841,1759705832990,-1313.55,0.00016438,2]
[389537843,1759705832999,-500.0,0.00016438,2]
[389537844,1759705833008,-248.50327927,0.00016438,2]
[389537846,1759705833017,-500.0,0.00016438,2]
[389537848,1759705833027,-500.0,0.00016438,2]
[389537850,1759705833036,-500.0,0.00016438,2]
[389537852,1759705833045,-500.0,0.00016438,2]
[389537854,1759705833055,-500.0,0.00016438,2]
[389537856,1759705833064,-500.0,0.00016438,2]
[389537858,1759705833074,-500.0,0.00016438,2]
[389537861,1759705833084,-500.0,0.00016438,2]
[389537863,1759705833094,-500.0,0.00016438,2]
[389537865,1759705833103,-1089.97,0.00016438,2]
[389537867,1759705833113,-500.0,0.00016438,2]
[389537868,1759705833123,-500.0,0.00016438,2]
[389537870,1759705833133,-702.03,0.00016438,2]
[389537872,1759705833143,-500.0,0.00016438,2]
[389537874,1759705833151,-500.0,0.00016438,2]
[389537876,1759705833161,-500.0,0.00016438,2]
[389537878,1759705833171,-500.0,0.00016438,2]
[389537880,1759705833180,-500.0,0.00016438,2]
[389537882,1759705833190,-500.0,0.00016438,2]
[389537884,1759705833199,-595.35,0.00016438,2]
[389537886,1759705833208,-500.0,0.00016438,2]
[389537888,1759705833217,-500.0,0.00016438,2]
[389537890,1759705833226,-500.0,0.00016438,2]
[389537892,1759705833235,-500.0,0.00016438,2]
[389537894,1759705833244,-500.0,0.00016438,2]
[389537896,1759705833254,-722.19,0.00016438,2]
[389537898,1759705833263,-500.0,0.00016438,2]
[389537900,1759705833273,-500.0,0.00016438,2]
[389537902,1759705833283,-500.0,0.00016438,2]
[389537903,1759705833292,-500.0,0.00016438,2]
[389537905,1759705833303,-500.0,0.00016438,2]
[389537907,1759705833312,-500.0,0.00016438,2]
[389537910,1759705833322,-561.33,0.00016438,2]
[389537911,1759705833331,-500.0,0.00016438,2]
[389537913,1759705833340,-499.82236058,0.00016438,2]
[389537915,1759705833350,-500.0,0.00016438,2]
[389537917,1759705833359,-500.0,0.00016438,2]
[389537919,1759705833368,-500.0,0.00016438,2]
[389537921,1759705833377,-680.42,0.00016438,2]
[389537923,1759705833387,-500.0,0.00016438,2]
[389537925,1759705833396,-500.0,0.00016438,2]
[389537927,1759705833406,-500.0,0.00016438,2]
[389537929,1759705833415,-500.0,0.00016438,2]
[389537931,1759705833425,-500.0,0.00016438,2]
[389537933,1759705833434,-500.0,0.00016438,2]
[389537935,1759705833443,-287.70733921,0.00016438,2]
[389537937,1759705833453,-1175.06,0.00016438,2]
[389537939,1759705833462,-500.0,0.00016438,2]
[389537941,1759705833471,-500.0,0.00016438,2]
[389537943,1759705833480,-500.0,0.00016438,2]
[389537945,1759705833490,-500.0,0.00016438,2]
[389537947,1759705833498,-632.87,0.00016438,2]
[389537949,1759705833509,-500.0,0.00016438,2]
[389537951,1759705833521,-500.0,0.00016438,2]
[389537953,1759705833529,-500.0,0.00016438,2]
[389537955,1759705833539,-500.0,0.00016438,2]
[389537957,1759705833547,-500.0,0.00016438,2]
[389537959,1759705833556,-500.0,0.00016438,2]
[389537961,1759705833565,-500.0,0.00016438,2]
[389537963,1759705833574,-500.0,0.00016438,2]
[389537965,1759705833582,-500.0,0.00016438,2]
[389537966,1759705833592,-500.0,0.00016438,2]
[389537968,1759705833600,-500.0,0.00016438,2]
[389537970,1759705833609,-500.0,0.00016438,2]
[389537972,1759705833618,-500.0,0.00016438,2]
[389537974,1759705833627,-500.0,0.00016438,2]
[389537976,1759705833636,-500.0,0.00016438,2]
[389537978,1759705833646,-500.0,0.00016438,2]
[389537980,1759705833654,-500.0,0.00016438,2]
[389537982,1759705833663,-500.0,0.00016438,2]
[389537984,1759705833672,-1189.0,0.00016438,2]
[389537986,1759705833681,-500.0,0.00016438,2]
[389537988,1759705833691,-858.14,0.00016438,2]
[389537990,1759705833701,-500.0,0.00016438,2]
[389537992,1759705833710,-500.0,0.00016438,2]
[389537994,1759705833719,-8912.09,0.00016438,2]
[389537996,1759705833728,-500.0,0.00016438,2]
[389537998,1759705833738,-4904.79,0.00016438,2]
[389538000,1759705833747,-500.0,0.00016438,2]
[389538002,1759705833757,-520.41,0.00016438,2]
[389538004,1759705833766,-500.0,0.00016438,2]
[389538006,1759705833775,-500.0,0.00016438,2]
[389538008,1759705833784,-500.0,0.00016438,2]
[389538010,1759705833799,-500.0,0.00016438,2]
[389538012,1759705833808,-2968.23,0.00016438,2]
[389538014,1759705833817,-500.0,0.00016438,2]
[389538016,1759705833826,-500.0,0.00016438,2]
[389538018,1759705833837,-500.0,0.00016438,2]
[389538020,1759705833847,-500.0,0.00016438,2]
[389538022,1759705833856,-1675.7,0.00016438,2]
[389538024,1759705833866,-500.0,0.00016438,2]
[389538026,1759705833877,-6817.73,0.00016438,2]
[389538028,1759705833887,-500.0,0.00016438,2]
[389538030,1759705833897,-500.0,0.00016438,2]
[389538032,1759705833907,-500.0,0.00016438,2]
[389538034,1759705833916,-3638.84,0.00016438,2]
[389538036,1759705833925,-500.0,0.00016438,2]
[389538038,1759705833935,-500.0,0.00016438,2]
[389538040,1759705833944,-500.0,0.00016438,2]
[389538042,1759705833953,-640.66,0.00016438,2]
[389538044,1759705833970,-1162.09,0.00016438,2]
[389538046,1759705833981,-632.16,0.00016438,2]
[389538048,1759705833991,-500.0,0.00016438,2]
[389538050,1759705834001,-1161.24,0.00016438,2]
[389538052,1759705834011,-500.0,0.00016438,2]
[389538054,1759705834020,-500.0,0.00016438,2]
[389538056,1759705834029,-513.85,0.00016438,2]
[389538058,1759705834039,-500.0,0.00016438,2]
[389538060,1759705834050,-500.0,0.00016438,2]
[389538062,1759705834059,-500.0,0.00016438,2]
[389538064,1759705834069,-2284.57,0.00016438,2]
[389538066,1759705834079,-9970.0,0.00016438,2]
[389538068,1759705834088,-500.0,0.00016438,2]
[389538070,1759705834099,-668.53,0.00016438,2]
[389538072,1759705834108,-570.01,0.00016438,2]
[389538074,1759705834118,-348.69255632,0.00016438,2]
[389538076,1759705834135,-151.30744368,0.00016438,2]
[389538078,1759705834144,-924.87,0.00016438,2]
[389538080,1759705834154,-500.0,0.00016438,2]
[389538082,1759705834164,-1146.16,0.00016438,2]
[389538084,1759705834173,-500.0,0.00016438,2]
[389538086,1759705834182,-609.39,0.00016438,2]
[389538088,1759705834192,-500.0,0.00016438,2]
[389538090,1759705834202,-500.0,0.00016438,2]
[389538092,1759705834212,-1894.56,0.00016438,2]
[389538094,1759705834223,-500.0,0.00016438,2]
[389538096,1759705834233,-500.0,0.00016438,2]
[389538098,1759705834243,-500.0,0.00016438,2]
[389538100,1759705834253,-2974.64,0.00016438,2]
[389538102,1759705834262,-500.0,0.00016438,2]
[389538104,1759705834272,-1000.0,0.00016438,2]
[389538106,1759705834281,-564.25,0.00016438,2]
[389538108,1759705834291,-500.0,0.00016438,2]
[389538110,1759705834302,-500.0,0.00016438,2]
[389538112,1759705834311,-500.0,0.00016438,2]
[389538114,1759705834320,-500.0,0.00016438,2]
[389538116,1759705834329,-179.9982113,0.00016438,2]
[389538118,1759705834339,-2526.54,0.00016438,2]
[389538120,1759705834348,-500.0,0.00016438,2]
[389538122,1759705834357,-500.0,0.00016438,2]
[389538124,1759705834366,-500.0,0.00016438,2]
[389538126,1759705834376,-500.0,0.00016438,2]
[389538128,1759705834385,-732.81,0.00016438,2]
[389538130,1759705834395,-500.0,0.00016438,2]
[389538132,1759705834404,-500.0,0.00016438,2]
[389538134,1759705834413,-500.0,0.00016438,2]
[389538136,1759705834423,-3467.79,0.00016438,2]
[389538138,1759705834432,-500.0,0.00016438,2]
[389538140,1759705834441,-500.0,0.00016438,2]
[389538141,1759705834451,-295.42865613,0.00016438,2]
[389538142,1759705834460,-385.82,0.00016438,2]
[389538143,1759705834469,-500.0,0.00016438,2]
[389538144,1759705834479,-500.0,0.00016438,2]
[389538145,1759705834489,-500.0,0.00016438,2]
[389538146,1759705834498,-500.0,0.00016438,2]
[389538147,1759705834508,-500.0,0.00016438,2]
[389538148,1759705834518,-506.24,0.00016438,2]
[389538149,1759705834527,-500.0,0.00016438,2]
[389538150,1759705834536,-500.0,0.00016438,2]
[389538151,1759705834546,-500.0,0.00016438,2]
[389538152,1759705834555,-396.30131413,0.00016438,2]
[389538168,1759705837923,-103.69868587,0.00016438,2]
[389538169,1759705837932,-746.65,0.00016438,2]
[389538170,1759705837942,-976.36,0.00016438,2]
[389538171,1759705837951,-711.04,0.00016438,2]
[389538172,1759705837960,-751.27,0.00016438,2]
[389538173,1759705837970,-1602.39,0.00016438,2]
[389538174,1759705837979,-500.0,0.00016438,2]
[389538175,1759705837988,-3309.79,0.00016438,2]
[389538176,1759705837998,-500.0,0.00016438,2]
[389538177,1759705838007,-818.06,0.00016438,2]
[389538178,1759705838017,-500.0,0.00016438,2]
[389538179,1759705838026,-500.0,0.00016438,2]
[389538180,1759705838036,-71.29488981,0.00016438,2]
[389538192,1759705839803,-428.70511019,0.00016438,2]
[389538193,1759705839812,-1432.31,0.00016438,2]
[389538195,1759705839821,-500.0,0.00016438,2]
[389538197,1759705839830,-743.67,0.00016438,2]
[389538198,1759705839840,-500.0,0.00016438,2]
[389538199,1759705839850,-500.0,0.00016438,2]
[389538200,1759705839860,-500.0,0.00016438,2]
[389538201,1759705839871,-500.0,0.00016438,2]
[389538202,1759705839880,-500.0,0.00016438,2]
[389538203,1759705839889,-500.0,0.00016438,2]
[389538204,1759705839899,-483.0207881,0.00016438,2]
[389538205,1759705839908,-500.0,0.00016438,2]
[389538206,1759705839917,-439.48904636,0.00016438,2]
[389538207,1759705839928,-60.51095364,0.00016438,2]
[389538208,1759705839938,-500.0,0.00016438,2]
[389538209,1759705839947,-500.0,0.00016438,2]
[389538210,1759705839956,-500.0,0.00016438,2]
[389538211,1759705839965,-555.91925168,0.00016438,2]
[389538212,1759705839975,-2019.94,0.00016438,2]
[389538213,1759705839984,-500.0,0.00016438,2]
[389538214,1759705839993,-500.0,0.00016438,2]
[389538215,1759705840002,-500.0,0.00016438,2]
[389538216,1759705840012,-500.0,0.00016438,2]
[389538217,1759705840021,-500.0,0.00016438,2]
[389538218,1759705840199,-400.58232409,0.00016438,2]
[389538219,1759705840224,-208.20667588,0.00016438,2]
[389538278,1759705842987,-494.3173247,0.00016438,2]
[389538280,1759705842998,-3.85599942,0.00016438,2]
[389538282,1759705843007,-1187.5,0.00016438,2]
[389538284,1759705843018,-500.0,0.00016438,2]
[389538286,1759705843027,-525.9,0.00016438,2]
[389538288,1759705843036,-500.0,0.00016438,2]
[389538290,1759705843045,-500.0,0.00016438,2]
[389538291,1759705843054,-500.0,0.00016438,2]
[389538292,1759705843067,-500.0,0.00016438,2]
[389538293,1759705843077,-500.0,0.00016438,2]
[389538294,1759705843087,-714.3,0.00016438,2]
[389538295,1759705843096,-8105.41,0.00016438,2]
[389538296,1759705843106,-872.9,0.00016438,2]
[389538298,1759705843115,-500.0,0.00016438,2]
[389538299,1759705843124,-165.03583546,0.00016438,2]
[389538300,1759705843136,-500.0,0.00016438,2]
[389538301,1759705843145,-1229.68,0.00016438,2]
[389538302,1759705843155,-500.0,0.00016438,2]
[389538303,1759705843164,-500.0,0.00016438,2]
[389538304,1759705843173,-500.0,0.00016438,2]
[389538305,1759705843183,-241.23034448,0.00016438,2]
[389538306,1759705843192,-500.0,0.00016438,2]
[389538307,1759705843203,-500.0,0.00016438,2]
[389538308,1759705843213,-168.72,0.00016438,2]
[389538309,1759705843222,-500.0,0.00016438,2]
[389538310,1759705843232,-500.0,0.00016438,2]
[389538311,1759705843241,-500.0,0.00016438,2]
[389538312,1759705843251,-188.78798777,0.00016438,2]
[389538313,1759705843260,-4700.42,0.00016438,2]
[389538314,1759705843269,-870.06,0.00016438,2]
[389538315,1759705843279,-500.0,0.00016438,2]
[389538316,1759705843288,-500.0,0.00016438,2]
[389538317,1759705843297,-500.0,0.00016438,2]
[389538318,1759705843307,-1113.67,0.00016438,2]
[389538319,1759705843317,-500.0,0.00016438,2]
[389538320,1759705843327,-500.0,0.00016438,2]
[389538321,1759705843336,-1128.19219477,0.00016612,2]
[389538322,1759705843346,-500.0,0.00016712,2]
[389538323,1759705843355,-500.0,0.00016712,2]
[389538324,1759705843364,-500.0,0.00016712,2]
[389538325,1759705843373,-500.0,0.00016712,2]
[389538326,1759705843382,-500.0,0.00016712,2]
[389538327,1759705843392,-500.0,0.00016712,2]
[389538328,1759705843401,-500.0,0.00016712,2]
[389538329,1759705843411,-500.0,0.00016712,2]
[389538330,1759705843420,-500.0,0.00016712,2]
[389538331,1759705843431,-500.0,0.00016712,2]
[389538332,1759705843440,-500.0,0.00016712,2]